bitfinex/quotes_ETHUSD_20220218
["timestamp","ask_amount","ask_price","bid_price","bid_amount"]
[1645150747001,0.92348106,2914.5,2914.1,0.66596551]
[1645150747202,0.45721235,2914.4,2914.1,0.66596551]
[1645150747448,1.31549235,2914.4,2914.1,0.66596551]
[1645150747647,0.45721235,2914.3,2914.1,0.66596551]
[1645150747848,3.43607793,2914.6,2914.1,0.66471936]
[1645150748050,0.4650483,2914.5,2914.1,0.66471936]
[1645150748648,0.4650483,2914.4,2914.1,0.66471936]
[1645150748846,0.00290799,2914.5,2914.1,0.66471936]
[1645150748847,0.4650483,2914.3,2914.1,0.66471936]
[1645150749050,0.96866417,2914.5,2914.1,0.66471936]
[1645150749248,0.46479817,2914.4,2914.1,0.66471936]
[1645150749648,2.18128817,2914.4,2914.1,0.66471936]
[1645150749851,0.46479817,2914.3,2914.1,0.66471936]
[1645150750250,0.85827,2914.4,2914.1,0.66471936]
[1645150750749,1.32268227,2914.3,2914.1,0.66471936]
[1645150750951,4.5,2914.2,2913.6,0.85821]
[1645150751213,4.5,2914.2,2912.2,0.50416294]
[1645150751214,5.0,2913.7,2912.2,0.50416294]
[1645150751418,5.0,2913.7,2912.3,0.90828744]
[1645150751419,0.96742521,2912.8,2912.3,0.90828744]
[1645150751616,0.2488,2912.8,2912.3,0.90828744]
[1645150751811,0.85885,2912.7,2912.3,0.90828744]
[1645150752015,0.85885,2912.7,2912.3,0.91245038]
[1645150752211,0.85885,2912.7,2912.3,0.00416294]
[1645150752414,1.71775,2912.7,2912.3,0.00416294]
[1645150752615,1.71775,2912.7,2912.6,1.01839026]
[1645150752616,0.85885,2912.7,2912.6,1.01839026]
[1645150752815,1.0,2913.2,2912.6,1.01839026]
[1645150752816,1.10736,2913.2,2912.6,1.01839026]
[1645150753620,0.85846,2913.7,2912.6,1.01839026]
[1645150753816,0.85846,2913.7,2913.1,1.14859158]
[1645150753817,0.85846,2913.5,2913.1,1.14859158]
[1645150754013,0.85846,2913.5,2912.6,0.6]
[1645150754219,0.85846,2913.5,2912.6,0.4716]
[1645150754618,1.10726,2913.5,2912.6,0.4716]
[1645150754854,6.8514,2914.1,2912.7,0.82270359]
[1645150755055,7.1002,2914.1,2912.8,0.1716]
[1645150755252,7.1002,2914.1,2912.9,0.82270359]
[1645150755452,7.1002,2914.1,2913.0,0.1716]
[1645150755753,1.03738264,2913.8,2913.3,0.00330463]
[1645150755956,0.85845,2913.7,2913.3,0.00330463]
[1645150756862,1.71708,2913.6,2913.0,7.6]
[1645150757056,1.71708,2913.6,2913.4,0.0033046]
[1645150757057,2.57561,2913.6,2913.4,0.0033046]
[1645150757557,0.85853,2913.6,2913.4,0.0033046]
[1645150757957,0.85853,2913.6,2913.1,1.2519906]
[1645150758159,0.85836,2913.9,2913.1,1.2519906]
[1645150758357,0.85836,2913.9,2913.4,0.0033046]
[1645150759004,0.85841,2913.8,2913.4,0.0033046]
[1645150759205,0.85841,2913.8,2913.1,1.2519906]
[1645150759411,0.85841,2913.8,2913.4,0.00330467]
[1645150759412,0.85841,2913.7,2913.4,0.00330467]
[1645150760404,0.85841,2913.7,2913.1,1.2519906]
[1645150760605,0.85841,2913.7,2913.4,0.00330462]
[1645150761610,0.85841,2913.7,2913.1,1.2519906]
[1645150761811,0.85841,2913.7,2913.4,0.00330462]
[1645150762848,0.85841,2913.7,2913.1,1.2519906]
[1645150763048,0.85841,2913.7,2913.4,0.00330462]
[1645150764049,0.85841,2913.7,2913.1,1.5519906]
[1645150764250,0.85841,2913.7,2913.4,0.00330462]
[1645150765250,0.85841,2913.7,2913.1,1.55615354]
[1645150765450,0.85841,2913.7,2913.4,0.00330462]
[1645150766103,1.71688,2913.7,2913.4,0.00330462]
[1645150766309,1.71688,2913.7,2913.1,0.30416294]
[1645150766809,1.71688,2913.7,2913.4,0.00330462]
[1645150767411,0.94044252,2913.5,2913.4,0.00330462]
[1645150767611,1.07557988,2913.6,2913.5,0.13003036]
[1645150768513,0.85841,2913.7,2913.5,0.13003036]
[1645150772162,5.735,2914.1,2913.5,0.13003036]
[1645150772163,4.735,2914.1,2913.5,0.13003036]
[1645150772368,1.89156372,2914.2,2913.5,0.13003036]
[1645150772369,1.0186133,2914.2,2913.6,0.87205826]
[1645150772563,0.2488,2914.9,2913.7,3.5]
[1645150772564,0.1715,2914.8,2913.7,3.5]
[1645150772762,0.00330372,2914.2,2913.7,7.3148]
[1645150772960,0.00330372,2914.2,2913.7,6.8148]
[1645150773603,0.99889821,2914.7,2914.1,0.95298287]
[1645150773803,1.85703821,2914.7,2914.1,0.95298287]
[1645150774003,0.00330388,2914.2,2914.1,0.95298287]
[1645150774406,0.00330388,2914.2,2914.1,1.25298287]
[1645150774809,2.9389,2915.2,2914.1,4.75298287]
[1645150774810,2.0119,2915.1,2914.1,4.75298287]
[1645150775013,0.00330383,2914.3,2914.1,4.92448287]
[1645150775205,0.00330383,2914.3,2914.2,3.8]
[1645150776004,1.08747341,2915.1,2914.2,3.8]
[1645150776005,1.08747341,2915.1,2914.2,4.295]
[1645150776210,0.00330376,2914.4,2914.2,2.51083]
[1645150776612,0.00330376,2914.4,2914.2,3.36882]
[1645150776809,0.00330376,2914.4,2914.2,2.87382]
[1645150777350,1.08747341,2915.1,2914.2,2.31583]
[1645150777557,0.00330372,2914.4,2914.2,2.31583]
[1645150778350,1.08747341,2915.1,2914.2,2.31583]
[1645150778552,0.01240526,2914.9,2914.4,0.85796]
[1645150778755,0.01240526,2914.9,2914.4,1.15796]
[1645150779553,1.94546341,2915.1,2914.4,1.15796]
[1645150779754,0.6458497,2915.0,2914.4,1.15796]
[1645150779954,0.00310154,2914.8,2914.6,1.07710731]
[1645150780355,0.00310154,2914.8,2914.6,1.37710731]
[1645150780855,2.2279781,2915.5,2914.6,1.37710731]
[1645150781104,0.00310151,2914.8,2914.6,1.37710731]
[1645150781306,0.00310151,2914.8,2914.6,0.3]
[1645150781507,0.00310151,2914.8,2914.4,0.3]
[1645150781909,0.6458662,2915.2,2914.4,0.3]
[1645150782108,0.6458662,2915.1,2914.4,0.3]
[1645150782309,0.00310157,2914.7,2914.4,0.3]
[1645150783109,0.6458662,2914.9,2914.4,0.3]
[1645150783511,0.00311116,2914.7,2914.4,0.3]
[1645150784309,0.85806,2914.8,2914.4,0.3]
[1645150784713,0.00311116,2914.7,2914.3,0.3]
[1645150784956,0.00311116,2914.7,2914.0,0.1715]
[1645150784957,0.00311116,2914.7,2914.0,1.0296]
[1645150785154,0.00311116,2914.7,2914.2,0.3]
[1645150785554,0.85813,2914.8,2914.1,0.3]
[1645150785858,0.85813,2914.8,2913.6,1.06156459]
[1645150785859,1.15396228,2914.3,2913.6,1.06156459]
[1645150786054,1.40276228,2914.3,2913.6,1.06156459]
[1645150786260,0.64652149,2914.2,2913.6,1.06156459]
[1645150787061,0.64963232,2914.2,2913.6,2.21982459]
[1645150787661,0.00311083,2914.2,2913.7,0.79615352]
[1645150788062,1.40276228,2914.3,2913.7,0.79615352]
[1645150788266,0.00311085,2914.2,2913.7,0.79615352]
[1645150788702,0.86137085,2914.2,2913.7,1.65438352]
[1645150788903,0.86137085,2914.2,2913.8,1.09615352]
[1645150789103,0.86137085,2914.2,2913.8,0.3]
[1645150789303,0.85826,2914.2,2913.8,0.3]
[1645150789518,0.86137085,2914.2,2913.8,0.3]
[1645150789907,0.86137085,2914.2,2913.6,2.21983459]
[1645150790105,0.86137085,2914.2,2913.7,0.79645111]
[1645150790305,0.00311085,2914.2,2913.7,0.79645111]
[1645150790524,0.6435479,2914.2,2913.7,0.79645111]
[1645150790804,0.64665879,2914.2,2913.4,0.30311176]
[1645150791005,0.64665879,2914.2,2913.5,0.00415603]
[1645150791206,0.64665879,2914.2,2913.7,0.85818]
[1645150791607,0.6435479,2914.2,2913.7,0.85818]
[1645150791907,0.6466588,2914.2,2913.7,1.71642]
[1645150792106,0.85818,2914.4,2914.2,0.70174952]
[1645150794352,0.85930538,2914.4,2914.2,0.70174952]
[1645150795253,0.85930538,2914.4,2913.9,0.85818]
[1645150795254,4.29825048,2914.0,2913.9,0.85818]
[1645150795456,4.29825048,2914.0,2913.8,1.15816]
[1645150795658,4.29825048,2914.0,2913.8,2.21141053]
[1645150797108,4.29825048,2914.0,2913.8,3.06954053]
[1645150797307,4.29825048,2914.0,2913.8,3.36954053]
[1645150797711,2.25037569,2914.0,2913.8,3.36954053]
[1645150798107,2.25037569,2914.0,2913.8,4.22754053]
[1645150800553,2.25037569,2914.0,2913.9,1.71594]
[1645150802659,0.00310632,2914.3,2914.0,6.0]
[1645150802859,0.00310632,2914.3,2914.0,8.57376]
[1645150803058,0.00310632,2914.3,2914.0,8.87376]
[1645150803701,3.5,2915.3,2914.8,0.86168653]
[1645150803901,1.71597,2915.4,2914.8,1.71961653]
[1645150803902,2.5739,2915.4,2914.8,1.71961653]
[1645150804601,0.85793,2915.2,2915.0,0.07]
[1645150805003,1.71903057,2915.2,2915.0,0.07]
[1645150805205,3.5,2915.1,2915.0,0.07]
[1645150805402,6.0,2915.0,2914.1,3.2798]
[1645150805603,3.7488,2914.9,2914.1,3.2798]
[1645150805802,1.02331898,2914.4,2914.1,3.2798]
[1645150806006,0.85826,2914.5,2914.1,3.2798]
[1645150806607,3.5,2914.4,2914.1,3.2798]
[1645150806807,4.35824,2914.4,2914.1,3.2798]
[1645150807006,1.0,2914.3,2914.1,3.2798]
[1645150807205,5.21702,2914.2,2914.1,3.2798]
[1645150807653,6.41024286,2914.2,2914.1,3.2798]
[1645150809454,2.91024286,2914.2,2914.1,3.2798]
[1645150810054,6.0,2914.1,2913.7,0.00300649]
[1645150810259,1.71716,2914.0,2913.7,0.00300649]
[1645150810457,2.41716,2914.0,2913.7,0.00300649]
[1645150810657,4.18574385,2913.9,2913.7,0.00300649]
[1645150810857,0.85367031,2913.2,2913.1,0.00415603]
[1645150811100,0.85367031,2913.2,2913.1,0.763691]
[1645150811312,0.85367031,2913.2,2913.1,0.75953497]
[1645150811508,0.85854,2913.5,2913.1,0.75953497]
[1645150811806,0.69110736,2913.4,2913.2,0.763691]
[1645150812010,0.69110736,2913.4,2912.7,0.13819997]
[1645150812011,0.69110736,2913.4,2912.8,0.00415603]
[1645150812207,0.69110736,2913.4,2913.2,0.00291185]
[1645150812409,0.2488,2913.6,2913.2,0.00291185]
[1645150812610,1.09543172,2913.6,2913.5,1.56095461]
[1645150812808,1.78647588,2913.6,2913.5,1.56095461]
[1645150815053,5.28647588,2913.6,2913.5,1.56095461]
[1645150815254,1.78647588,2913.6,2913.5,1.56095461]
[1645150815453,5.28647588,2913.6,2913.5,1.56095461]
[1645150816461,6.28647588,2913.6,2913.5,1.56095461]
[1645150816658,5.28647588,2913.6,2913.5,1.56095461]
[1645150816857,2.78647588,2913.6,2913.5,1.56095461]
[1645150817459,6.28647588,2913.6,2913.5,1.56095461]
[1645150818706,2.78647588,2913.6,2913.5,1.56095461]
[1645150821412,6.28647588,2913.6,2913.5,1.56095461]
[1645150822012,2.78647588,2913.6,2913.5,1.56095461]
[1645150822476,1.78647588,2913.6,2913.5,1.56095461]
[1645150824878,0.93984416,2913.6,2913.5,1.56095461]
[1645150825280,2.88295,2914.2,2913.5,1.56095461]
[1645150825281,1.1662,2914.2,2913.5,1.56095461]
[1645150825478,3.76516569,2914.3,2913.5,1.56095461]
[1645150825479,0.68994627,2914.1,2913.5,1.56095461]
[1645150825677,0.68994627,2914.0,2913.5,1.56095461]
[1645150825881,0.68994627,2913.9,2913.5,1.56095461]
[1645150826102,1.01047361,2914.1,2913.5,1.56095461]
[1645150826306,0.69004588,2914.0,2913.6,0.75227619]
[1645150826707,1.54835588,2914.0,2913.7,0.00290869]
[1645150826911,0.85831,2914.0,2913.7,0.00290869]
[1645150827706,0.85831,2914.0,2913.6,0.75227619]
[1645150827907,0.69038177,2913.9,2913.7,0.00290866]
[1645150828107,0.00290802,2914.3,2913.7,0.00290866]
[1645150828108,0.86114802,2914.3,2913.7,0.00290866]
[1645150828308,0.69043061,2914.2,2913.7,0.00290866]
[1645150828707,0.00290802,2914.3,2913.7,0.75518485]
[1645150828907,0.69044378,2914.3,2913.8,0.75227619]
[1645150829107,0.69335184,2914.3,2913.9,0.75227619]
[1645150829407,1.55162184,2914.3,2913.7,0.0029087]
[1645150829611,0.69044378,2914.2,2913.7,0.0029087]
[1645150829856,0.69044378,2914.1,2913.7,0.75602646]
[1645150830057,1.7545642,2914.4,2913.8,0.75311776]
[1645150830258,1.7545642,2914.4,2913.9,0.75311776]
[1645150830259,0.69352442,2914.3,2913.9,0.75311776]
[1645150830459,0.69352442,2914.3,2913.8,0.75311776]
[1645150830659,0.69352442,2914.3,2913.9,0.75311776]
[1645150830861,0.00290805,2914.3,2914.0,0.75311776]
[1645150831061,0.00290805,2914.3,2914.1,0.75311776]
[1645150831267,0.69061392,2914.7,2914.1,0.3]
[1645150831268,0.93408433,2914.6,2914.1,0.3]
[1645150831464,0.69061392,2914.5,2914.2,0.75221219]
[1645150831667,0.00112983,2914.3,2914.1,0.3]
[1645150832469,0.69061392,2914.5,2914.3,0.00118614]
[1645150832667,0.69061392,2914.6,2914.3,0.00118614]
[1645150832868,1.0,2915.0,2914.3,0.00118614]
[1645150832869,0.69048453,2914.5,2914.3,0.00118614]
[1645150833069,0.00451869,2914.8,2914.3,0.00118614]
[1645150833270,0.69048143,2914.7,2914.3,0.00020823]
[1645150833806,0.00317951,2914.6,2914.3,0.85835823]
[1645150834008,0.69366094,2914.6,2914.3,0.85835823]
[1645150834206,0.69048143,2914.5,2914.3,0.85835823]
[1645150834408,0.00317951,2914.6,2914.3,0.85835823]
[1645150834812,0.69037463,2915.0,2914.3,0.85835823]
[1645150835208,0.00295399,2914.6,2914.3,0.85835823]
[1645150835810,0.00295399,2914.6,2914.3,0.00020823]
[1645150836012,0.85821,2914.7,2914.3,0.00020823]
[1645150836212,3.5,2914.8,2914.3,0.00020823]
[1645150836213,0.69037463,2914.6,2914.3,0.00020823]
[1645150836413,0.69037463,2914.5,2914.3,0.00020823]
[1645150836714,0.69037463,2914.4,2914.3,0.00020823]
[1645150836913,1.54870463,2914.4,2914.3,0.00020823]
[1645150840863,2.54870463,2914.4,2914.3,0.00020823]
[1645150841115,1.54870463,2914.4,2914.3,0.00020823]
[1645150841315,2.54870463,2914.4,2914.3,0.00020823]
[1645150847668,1.54870463,2914.4,2914.3,0.00020823]
[1645150856714,3.20357337,2914.4,2914.3,0.00020823]
[1645150856914,24.50882054,2914.4,2914.3,0.00020823]
[1645150857115,24.3489518,2914.4,2914.3,0.00020823]
[1645150857313,4.0689518,2914.4,2914.3,0.00020823]
[1645150857514,0.85848,2914.1,2913.7,0.00291121]
[1645150857712,0.69037463,2914.0,2913.6,0.73540772]
[1645150857913,0.92588503,2913.9,2913.7,0.00291121]
[1645150858118,0.69037463,2913.8,2913.7,0.00291121]
[1645150858813,0.69037463,2913.8,2913.6,0.73540772]
[1645150859215,0.69037463,2913.8,2913.6,0.7383188]
[1645150859416,1.54883463,2913.8,2913.6,0.7383188]
[1645150859615,0.69037463,2913.7,2913.6,0.7383188]
[1645150860156,1.78433503,2913.9,2913.6,0.73540772]
[1645150860157,0.69037463,2913.8,2913.6,0.73540772]
[1645150860356,0.69037463,2913.7,2913.6,0.73540772]
[1645150860555,0.69037463,2913.8,2913.6,0.73540772]
[1645150861559,0.85844,2913.7,2913.6,0.73831884]
[1645150861760,1.54881463,2913.7,2913.6,1.03831884]
[1645150862361,1.54881463,2913.7,2913.6,1.03540772]
[1645150865720,1.54881463,2913.7,2913.6,0.3]
[1645150866120,1.54881463,2913.7,2913.5,1.86095461]
[1645150866322,0.69037463,2913.6,2913.5,1.86386578]
[1645150866522,0.69037463,2913.6,2913.5,2.60110518]
[1645150867357,0.69037463,2913.6,2913.5,2.59819401]
[1645150871909,1.71692,2913.7,2913.5,1.86095461]
[1645150872112,0.71420157,2913.6,2913.5,1.86095461]
[1645150872311,0.71420157,2913.6,2913.5,2.59651518]
[1645150874415,0.71420157,2913.6,2913.5,2.29651518]
[1645150874416,1.57118123,2913.6,2913.5,2.29651518]
[1645150874616,1.57118123,2913.6,2913.5,0.34137912]
[1645150874872,2.72155517,2913.6,2913.5,0.34137912]
[1645150875070,3.72155517,2913.6,2913.5,0.34137912]
[1645150875270,3.72155517,2913.6,2913.4,0.00291123]
[1645150875271,6.0,2913.5,2913.4,0.00291123]
[1645150875473,6.0,2913.5,2912.8,0.00415603]
[1645150875474,0.85893,2913.3,2912.8,0.00415603]
[1645150875685,20.28,2913.1,2912.8,0.00415603]
[1645150875884,20.28,2913.1,2912.2,0.00415603]
[1645150875885,2.74910859,2913.0,2912.2,0.00415603]
[1645150876284,5.0,2912.9,2912.2,0.00415603]
[1645150876484,0.99233484,2912.6,2912.2,0.00415603]
[1645150876680,1.35396,2912.5,2912.2,0.00415603]
[1645150876880,0.99408093,2912.0,2911.9,0.00415603]
[1645150877282,0.94408093,2912.0,2911.7,0.50415603]
[1645150877481,1.80319093,2912.0,2911.7,0.00415603]
[1645150877686,1.80319093,2912.0,2911.2,0.00415603]
[1645150877687,0.8591,2911.9,2911.2,0.00415603]
[1645150877884,1.8591,2911.9,2911.2,0.00415603]
[1645150878183,1.09568943,2911.4,2911.2,0.00415603]
[1645150878384,3.5,2911.3,2910.9,0.64759699]
[1645150878636,3.5,2911.3,2910.9,0.00415603]
[1645150878834,3.5,2911.3,2910.6,0.64759699]
[1645150879037,3.5,2911.3,2910.7,0.00415603]
[1645150879634,1.09568943,2911.4,2910.8,0.00312249]
[1645150879635,0.85922,2911.2,2910.8,0.00312249]
[1645150879833,2.95486943,2911.4,2910.8,0.00312249]
[1645150880133,2.09568943,2911.4,2910.8,0.00312249]
[1645150880435,2.09568943,2911.4,2910.7,0.00415603]
[1645150880436,0.2488,2911.5,2910.7,0.00415603]
[1645150880635,0.2488,2911.5,2910.7,0.64759699]
[1645150880833,0.2488,2911.5,2911.0,0.00318215]
[1645150881837,0.2488,2911.5,2911.1,1.19000321]
[1645150882039,0.2488,2911.5,2911.2,0.00415603]
[1645150883266,0.2488,2911.5,2911.2,0.00733801]
[1645150883466,0.2488,2911.5,2911.2,0.86625801]
[1645150883766,0.2488,2911.5,2911.2,0.00733801]
[1645150884068,0.1786,2912.1,2911.2,0.00415603]
[1645150884069,0.4274,2912.1,2911.2,0.00415603]
[1645150884265,1.28639,2912.1,2911.2,0.00415603]
[1645150884467,2.1455,2912.1,2911.2,0.00726717]
[1645150885068,1.8867964,2911.7,2911.2,0.00726717]
[1645150885370,0.85916,2911.6,2911.0,0.00415603]
[1645150885568,0.85916,2911.6,2911.5,0.00199429]
[1645150886413,0.85916,2911.6,2910.7,0.00415603]
[1645150886618,1.71834,2911.6,2910.7,0.00415603]
[1645150886815,1.85916,2911.6,2911.4,0.00199436]
[1645150887212,0.85916,2911.6,2911.4,0.00199436]
[1645150887615,0.85916,2911.6,2910.7,0.00415603]
[1645150888017,0.85916,2911.6,2911.4,0.00331041]
[1645150888816,0.85916,2911.6,2910.7,0.00415603]
[1645150889221,0.85916,2911.6,2911.4,0.00331041]
[1645150890066,0.85916,2911.6,2910.7,0.00415603]
[1645150890264,0.95210376,2911.1,2910.7,0.00415603]
[1645150891669,0.95210376,2911.1,2910.8,0.00331082]
[1645150892469,0.95210376,2911.1,2910.7,0.00415603]
[1645150892868,0.95210376,2911.1,2910.8,0.00331079]
[1645150893713,0.95210376,2911.1,2910.7,0.00415603]
[1645150893906,0.95210376,2911.1,2910.8,0.00331079]
[1645150894708,0.77027822,2911.5,2910.8,0.00331079]
[1645150894909,0.86749092,2911.4,2910.8,0.68950693]
[1645150895208,0.86749092,2911.4,2910.9,0.6853509]
[1645150895406,0.86749092,2911.4,2911.0,0.00415603]
[1645150895607,0.86749092,2911.4,2910.8,0.00746682]
[1645150895810,1.03068,2911.7,2910.9,0.65681037]
[1645150896008,0.85908,2911.7,2911.0,0.00415603]
[1645150896213,0.85908,2911.7,2911.1,0.65681037]
[1645150896411,0.85908,2911.7,2911.2,0.00746658]
[1645150896612,3.57727,2912.0,2911.2,0.00746658]
[1645150896613,0.2488,2911.6,2911.2,0.00746658]
[1645150896811,0.2488,2911.6,2911.2,0.00331055]
[1645150897017,0.85913,2911.5,2911.2,0.00331055]
[1645150897361,0.85913,2911.5,2910.9,0.65700586]
[1645150897362,1.02718661,2911.7,2911.0,0.00415603]
[1645150897560,1.02718661,2911.7,2911.2,0.00331052]
[1645150897961,1.02718661,2911.7,2911.2,0.00746655]
[1645150898163,1.02718661,2911.7,2911.2,0.00331052]
[1645150898362,1.88628661,2911.7,2911.2,0.00331052]
[1645150898565,1.88628661,2911.7,2910.9,0.65274336]
[1645150898566,0.85908,2911.6,2911.0,0.00415603]
[1645150898764,0.85908,2911.6,2911.3,0.00331045]
[1645150899862,0.85908,2911.6,2911.0,0.00415603]
[1645150900064,1.71821,2911.6,2911.3,0.00331045]
[1645150900263,0.85918,2911.5,2911.3,0.00331045]
[1645150900864,1.85918,2911.5,2911.3,0.00331045]
[1645150901116,1.85918,2911.5,2910.6,0.00415603]
[1645150901117,0.85922,2911.4,2910.6,0.00415603]
[1645150901320,1.85918,2911.5,2910.6,0.00415603]
[1645150901321,0.85918,2911.5,2911.3,0.00331048]
[1645150902223,0.85918,2911.5,2910.7,0.65802302]
[1645150902417,0.85918,2911.5,2911.3,0.00331048]
[1645150903320,0.85918,2911.5,2910.7,0.65422926]
[1645150903522,0.85918,2911.5,2910.8,0.00415603]
[1645150903730,0.85918,2911.5,2911.3,0.00331048]
[1645150904519,0.85918,2911.5,2911.2,0.00415603]
[1645150904724,0.85918,2911.5,2910.7,0.00415603]
[1645150904959,0.85918,2911.5,2911.3,0.00331048]
[1645150905763,0.85918,2911.5,2911.1,0.00415603]
[1645150905961,0.85918,2911.5,2911.3,0.00331048]
[1645150906365,1.71841,2911.5,2911.3,0.00331048]
[1645150906567,0.85922,2911.4,2911.3,0.00331048]
[1645150907067,0.85918,2911.3,2911.1,0.00415603]
[1645150907270,0.85918,2911.3,2911.2,0.00331052]
[1645150908269,2.57765,2911.4,2911.1,0.65918077]
[1645150908270,0.85912,2911.4,2911.1,0.65918077]
[1645150908473,1.1923923,2911.2,2911.1,0.00331058]
[1645150909025,1.1923923,2911.2,2911.1,0.65924591]
[1645150909325,1.71828,2911.7,2911.1,0.65593533]
[1645150909528,1.1716,2912.0,2911.2,3.50416379]
[1645150909730,3.1764,2912.2,2911.3,0.96009912]
[1645150909931,1.8906,2912.3,2911.4,0.65593533]
[1645150909932,0.2488,2912.3,2911.4,0.65593533]
[1645150910129,0.8430464,2911.9,2911.5,0.00416379]
[1645150910326,0.8430464,2911.9,2911.6,0.65593533]
[1645150910526,0.8430464,2911.9,2911.7,0.00416379]
[1645150910730,0.8430464,2911.9,2911.7,0.85892]
[1645150910927,0.8430464,2911.9,2911.7,0.86308379]
[1645150911333,0.8430464,2911.9,2911.7,0.00416379]
[1645150911533,0.8430464,2911.9,2911.6,0.00331028]
[1645150911733,0.8430464,2911.9,2911.4,0.00416379]
[1645150912132,0.8430464,2911.9,2911.7,0.00331021]
[1645150912963,0.8430464,2911.9,2911.3,0.00416379]
[1645150913160,0.8430464,2911.9,2911.7,0.00331021]
[1645150913562,1.7020464,2911.9,2911.7,0.00331021]
[1645150914262,1.7020464,2911.9,2911.5,0.00416379]
[1645150914460,1.7020464,2911.9,2911.7,0.00199434]
[1645150914664,0.8430464,2911.9,2911.7,0.00199434]
[1645150915265,0.8430464,2911.9,2911.6,0.65864009]
[1645150915463,0.8430464,2911.9,2911.3,0.00416379]
[1645150915665,0.8430464,2911.9,2911.7,0.00199434]
[1645150916314,0.8430464,2911.9,2911.7,0.66135627]
[1645150916315,0.79126829,2911.8,2911.7,0.66135627]
[1645150916515,0.79126829,2911.8,2911.7,0.00416379]
[1645150916715,0.79126829,2911.8,2911.4,0.66352572]
[1645150916917,0.00452842,2911.5,2911.3,1.71788]
[1645150917119,0.00452842,2911.5,2911.4,0.66471912]
[1645150918117,0.79591803,2911.5,2911.4,0.66471912]
[1645150918316,0.79591803,2911.5,2911.4,0.66055576]
[1645150918915,0.79591803,2911.5,2910.9,1.18966145]
[1645150918916,0.79591803,2911.5,2911.0,0.66055576]
[1645150919117,0.79224542,2911.4,2911.1,0.66471912]
[1645150919318,0.79224542,2911.4,2911.3,0.00331257]
[1645150919521,0.79224542,2911.4,2911.3,0.66803169]
[1645150920159,0.79224542,2911.4,2911.3,0.66471912]
[1645150920559,0.79224542,2911.4,2911.3,0.00416336]
[1645150920759,0.79224542,2911.4,2911.3,0.66471912]
[1645150920760,1.74557128,2911.4,2911.3,0.66471912]
[1645150921060,1.74557128,2911.4,2911.3,0.00416336]
[1645150921264,1.74557128,2911.4,2911.3,0.66471912]
[1645150921466,1.74557128,2911.4,2911.3,0.00416336]
[1645150921666,1.74557128,2911.4,2911.3,0.66471912]
[1645150921968,1.74557128,2911.4,2911.3,0.00416336]
[1645150922166,1.74557128,2911.4,2911.3,0.66471912]
[1645150922367,1.74557128,2911.4,2911.3,0.00416336]
[1645150922565,2.60471128,2911.4,2911.3,0.66055576]
[1645150922768,2.60471128,2911.4,2911.2,0.00331476]
[1645150922973,0.79224542,2911.3,2911.2,0.66387052]
[1645150923169,0.79224542,2911.3,2911.2,0.00331476]
[1645150923368,2.51081542,2911.3,2911.2,0.00747812]
[1645150923615,2.51081542,2911.3,2911.2,0.66387052]
[1645150923817,2.51081542,2911.3,2911.2,0.00416336]
[1645150924116,2.51081542,2911.3,2911.1,0.00331483]
[1645150924316,1.65149542,2911.2,2911.1,0.00331483]
[1645150924919,1.65149542,2911.2,2911.0,0.66055576]
[1645150925116,1.65149542,2911.2,2910.9,0.00416336]
[1645150925117,0.79224542,2911.1,2910.9,0.00416336]
[1645150925317,0.79224542,2911.1,2911.0,0.66269358]
[1645150925521,0.79224542,2911.1,2911.0,0.66685694]
[1645150925722,0.85924,2911.1,2911.0,0.66685694]
[1645150925925,1.65148542,2911.1,2911.0,0.66685694]
[1645150926522,4.33314306,2911.0,2910.7,0.85923]
[1645150926921,5.19240306,2911.0,2910.7,0.85923]
[1645150927357,1.0640829,2910.9,2910.7,0.85923]
[1645150927559,1.0640829,2910.9,2910.7,0.8625451]
[1645150927964,4.33314306,2911.0,2910.7,0.8625451]
[1645150928561,4.33314306,2911.0,2910.7,0.85923]
[1645150928761,4.33314306,2911.0,2910.7,0.8625451]
[1645150929162,4.33314306,2911.0,2910.7,1.7216951]
[1645150929764,4.33314306,2911.0,2910.7,0.85923]
[1645150929965,5.24497102,2911.0,2910.7,0.8625451]
[1645150930965,5.24497102,2911.0,2910.7,0.85923]
[1645150931213,5.24497102,2911.0,2910.7,0.8625451]
[1645150931615,5.24497102,2911.0,2910.7,1.7216951]
[1645150931917,5.24497102,2911.0,2910.7,0.8625451]
[1645150932116,5.24497102,2911.0,2910.7,0.85923]
[1645150932514,5.24497102,2911.0,2910.7,0.8625451]
[1645150933318,5.24497102,2911.0,2910.7,0.85923]
[1645150933716,5.24497102,2911.0,2910.7,0.8625451]
[1645150934616,5.24497102,2911.0,2910.7,0.85923]
[1645150934858,5.24497102,2911.0,2910.7,0.8625451]
[1645150935262,5.24497102,2911.0,2910.7,1.7217051]
[1645150935659,5.24497102,2911.0,2910.7,2.5808651]
[1645150935868,5.24497102,2911.0,2910.7,2.57755]
[1645150936064,5.24497102,2911.0,2910.7,2.5808651]
[1645150936266,5.24497102,2911.0,2910.7,1.7217051]
[1645150936466,5.24497102,2911.0,2910.8,0.85912]
[1645150936868,2.77094796,2911.0,2910.4,8.60173606]
[1645150937066,2.77094796,2911.0,2910.7,0.3]
[1645150937265,2.77094796,2911.0,2910.8,0.00331507]
[1645150938268,2.77094796,2911.0,2910.8,0.85913]
[1645150938711,2.77094796,2911.0,2910.8,1.71825]
[1645150938914,2.77094796,2911.0,2910.8,0.85913]
[1645150939716,2.77094796,2911.0,2910.8,2.01825]
[1645150939918,2.77094796,2911.0,2910.9,0.85899]
[1645150940318,2.77094796,2911.0,2910.7,0.85916]
[1645150942019,2.77094796,2911.0,2910.7,0.86330369]
[1645150944265,2.77094796,2911.0,2910.7,1.72246369]
[1645150944467,2.77094796,2911.0,2910.7,0.86330369]
[1645150945267,2.77094796,2911.0,2910.8,0.85911]
[1645150945470,2.77094796,2911.0,2910.8,0.86325369]
[1645150945667,2.77094796,2911.0,2910.8,0.00414369]
[1645150946520,2.77094796,2911.0,2910.9,0.60916118]
[1645150946719,3.6179091,2911.0,2910.9,0.60916118]
[1645150948622,3.6179091,2911.0,2910.9,0.90916118]
[1645150948828,2.77094796,2911.0,2910.9,4.70916118]
[1645150949021,2.77094796,2911.0,2910.9,1.20916118]
[1645150949619,2.77094796,2911.0,2910.9,2.06825118]
[1645150950084,0.00452842,2911.5,2911.0,26.1]
[1645150950290,0.00452842,2911.5,2911.2,0.65378176]
[1645150950485,0.00452842,2911.5,2911.4,0.65378176]
[1645150950685,0.00452842,2911.5,2911.4,1.27576118]
[1645150950885,0.00452842,2911.5,2911.4,1.57576118]
[1645150951084,0.00452842,2911.5,2911.4,1.87576118]
[1645150951286,0.00452842,2911.5,2911.4,3.93514892]